Cogmind - Beta 11 @@@ ROGUE MODE // 2022.03.18 @ 17:45:07 Player: Mr.Manatee Result: Destroyed by S-10 Pest with Light Assault Rifle Performance ------------- Evolutions (0) 0 Regions Visited (2) 400 Robots Destroyed (12) 60 Value Destroyed (194) 194 Prototype IDs (0) 0 Alien Tech Used (0) 0 Bonus (0) 0 TOTAL SCORE: 654 Bonus ------- None Cogmind --------- Core Integrity 0/250 Matter 295/300 Energy 160/160 System Corruption 6% Temperature Warm (102) Movement Walking (190) Ox1 Location -10/Mines Parts ------- > --- POWER (1) -------- Light Nuclear Core > --- PROPULSION (2) --- Aluminum Leg > --- UTILITY (2) ------ Small Storage Unit > --- WEAPON (2) ------- Small Laser Particle Gun > --- INVENTORY (8) ---- Light Ion Engine Light Treads Light Treads Aluminum Leg Aluminum Leg Aluminum Leg Light Assault Rifle Ripper Peak State ------------ > --- POWER ------------ Light Nuclear Core > --- PROPULSION ------- Aluminum Leg Flexi-carbon Leg > --- UTILITY ---------- Small Storage Unit > --- WEAPON ----------- Small Laser Particle Gun > --- INVENTORY -------- Light Ion Engine Light Treads Light Treads Aluminum Leg Aluminum Leg Aluminum Leg Light Assault Rifle Ripper [Rating: 14] Favorites ----------- Power Light Nuclear Core Engine Light Ion Engine Power Core Light Nuclear Core Propulsion Aluminum Leg Leg Aluminum Leg Utility Small Storage Unit Storage Small Storage Unit Processor Targeting Computer Weapon Light Assault Rifle Energy Gun Particle Gun Ballistic Gun Light Assault Rifle Build | -11 -10 -10 ------- Run | Scr Mat Min Slots Evolved . | . . . Power . | . . . Propulsion . | . . . Utility . | . . . Weapon . | . . . Parts Attached 17 | 6 2 9 Power 4 | 1 1 2 Engine 2 | 1 1 . Core 2 | . . 2 Reactor . | . . . Propulsion 6 | 2 . 4 Treads . | . . . Leg 6 | 2 . 4 Wheel . | . . . Hover . | . . . Flight . | . . . Utility 2 | 1 1 . Device . | . . . Storage 1 | 1 . . Processor 1 | . 1 . Hackware . | . . . Protection . | . . . Artifact . | . . . Weapon 5 | 2 . 3 Energy Gun 3 | . . 3 Energy Cannon . | . . . Ballistic Gun 2 | 2 . . Ballistic Cannon . | . . . Launcher . | . . . Special Weapon . | . . . Impact Weapon . | . . . Slashing Weapon . | . . . Piercing Weapon . | . . . Special Melee Weapon . | . . . Unidentified Prototypes . | . . . Corrupted Parts 1 | . . 1 System Corruption 6 | . . 6 Parts Lost 6 | . 1 5 Power 2 | . 1 1 Propulsion 1 | . . 1 Utility 1 | . . 1 Weapon 2 | . . 2 Highest Loss Streak 3 | . 1 3 To Critical Strikes . | . . . Average Slot Usage (%) 83 | . 88 82 Engine 4 | . 14 3 Core 8 | . . 10 Leg 25 | . 28 24 Storage 14 | . 14 14 Processor 1 | . 2 1 Energy Gun 11 | . . 13 Ballistic Gun 15 | . 28 13 Naked Turns . | . . . Heaviest Build 14 | 10 10 14 Greatest Support 30 | 20 20 30 Greatest Overweight (x) 1 | 1 . 1 Average Overweight (x) . | . . . Largest Inventory Capacity 8 | 8 8 8 Average Capacity 7 | 7 8 8 Most Carried 8 | 4 4 8 Average Carried 5 | 1 3 6 Final Capacity 8 | 8 8 8 Final Carried 8 | 4 3 8 Class Distribution -------------------- 79% | Mutant 20% | Scavenger-Mutant Dominant Class ---------------- Mutant | -10/Materials Mutant | -10/Mines Resources | -11 -10 -10 ----------- Run | Scr Mat Min Matter Collected 432 | 182 37 213 Remotely . | . . . Salvage Created 282 | . 51 231 Parts 25 | . 7 18 Haulers Intercepted . | . . . Recyclers Shooed . | . . . Parts Field Recycled . | . . . Retrieved Matter . | . . . Parts Self-Destructed . | . . . Prevented . | . . . Kills | -11 -10 -10 ------- Run | Scr Mat Min Combat Hostiles Destroyed 13 | . 3 10 Guns 13 | . 3 10 Classes Destroyed 3 | . 1 2 Swarmer 10 | . 3 7 Grunt 2 | . . 2 Assembled 1 | . . 1 Best Kill Streak 3 | . 3 3 Combat Bots Only 3 | . 3 3 Max Kills in Single Turn 1 | . 1 1 Gunslinging . | . . . Exploded . | . . . Melee . | . . . Uniques/NPCs Destroyed . | . . . Combat | -11 -10 -10 -------- Run | Scr Mat Min Damage Taken 818 | . 107 711 Core 258 | . 24 234 Absorbed by Shields . | . . . Core Remaining (%) 100 | 100 . . Volleys Fired 50 | . 6 44 Largest 2 | . 2 2 Hottest 105 | . 40 105 Shots Fired 86 | . 12 74 Gun 86 | . 12 74 Cannon . | . . . Launcher . | . . . Special . | . . . Kinetic 68 | . 12 56 Thermal 18 | . . 18 Explosive . | . . . Electromagnetic . | . . . Robot Hit Streak 7 | . 5 7 Robot Miss Streak 3 | . 2 3 Penetration Max . | . . . Secondary Targets 1 | . . 1 Max Gunslinging Chain 1 | . . 1 Shots Hit Robots 57 | . 7 50 Core Hits 25 | . 4 21 Critical Kills . | . . . Critical Parts Destroyed 1 | . . 1 Critical Strikes 3 | . . 3 Burn 2 | . . 2 Destroy 1 | . . 1 Melee Attacks . | . . . Impact . | . . . Slashing . | . . . Piercing . | . . . Sneak Attacks . | . . . Combat Hostiles . | . . . Follow-up Attacks . | . . . Damage Inflicted 522 | . 65 457 Guns 522 | . 65 457 Cannons . | . . . Explosions . | . . . Melee . | . . . Ramming . | . . . Kinetic 377 | . 65 312 Thermal 145 | . . 145 Explosive . | . . . Electromagnetic . | . . . Impact . | . . . Slashing . | . . . Piercing . | . . . Highest Corruption 6 | . . 6 Average Corruption 6 | . . 6 Corruption Purged . | . . . Corruption Blocked . | . . . Effects 18 | . . 18 Message Errors 3 | . . 3 Matter Fused 4 | . . 4 Heat Flow Errors 1 | . . 1 Energy Discharges 3 | . . 3 Parts Rejected 1 | . . 1 Data Loss (minor) 3 | . . 3 Data Loss (major) 1 | . . 1 Misfires 1 | . . 1 Weapon Failures 1 | . . 1 Overload Shots . | . . . Overflow Damage . | . . . Projectiles . | . . . Explosions . | . . . Melee . | . . . Knockbacks . | . . . Impact . | . . . Kinetic . | . . . Secondary . | . . . Self-Inflicted Damage . | . . . Shots . | . . . Rammed . | . . . Targets Rammed . | . . . Kicked . | . . . Crushed . | . . . Highest Temperature 278 | . . 278 Average Temperature 60 | . . 60 Received Heat Transfer 211 | . . 211 Siege Activations . | . . . Robots Corrupted . | . . . Combat Hostiles . | . . . Parts Fried . | . . . Impact Corruptions . | . . . Robots Melted . | . . . Combat Hostiles . | . . . Parts Melted . | . . . Heat Transferred 495 | . . 495 Parts Sabotaged . | . . . Parts Stolen . | . . . Parts Stripped . | . . . Power Chain Reactions . | . . . Missiles Intercepted . | . . . Alert | -11 -10 -10 ------- Run | Scr Mat Min Peak Influence 178 | . 75 178 Initial 28 | . . 28 Average 46 | . 33 53 Maximum Alert Level . | . . . Low Security (%) 100 | 100 100 100 Level 1 . | . . . Level 2 . | . . . Level 3 . | . . . Level 4 . | . . . Level 5 . | . . . High Security . | . . . Max Security . | . . . Squads Dispatched 1 | . 1 . Investigation . | . . . Extermination . | . . . Reinforcement 1 | . 1 . Assault . | . . . Garrison . | . . . Intercept . | . . . Searches Triggered . | . . . Construction Impeded . | . . . Haulers Reinforced . | . . . Active Scanning Responses . | . . . Cargo Convoy Interrupts . | . . . Stealth | -11 -10 -10 --------- Run | Scr Mat Min Distress Signals 2 | . . 2 Communications Jammed . | . . . Distress Signals . | . . . Times Spotted 25 | . 6 19 Peak Tracking Total 5 | . 5 5 Tactical Retreats 4 | . . 4 Traps | -11 -10 -10 ------- Run | Scr Mat Min Traps Triggered . | . . . Indirectly . | . . . Trap Hack Attempts . | . . . Triggered . | . . . Disarmed . | . . . Reprogrammed . | . . . Reused . | . . . Traps Extracted . | . . . Installed . | . . . Triggered . | . . . Machines | -11 -10 -10 ---------- Run | Scr Mat Min Machines Disabled . | . . . Max in Single Turn . | . . . Machines Sabotaged . | . . . Garrisons Compromised . | . . . Overloaded Fab Kills . | . . . Hacking | -11 -10 -10 --------- Run | Scr Mat Min Machines Accessed . | . . . Terminals . | . . . Fabricators . | . . . Repair Stations . | . . . Recycling Units . | . . . Scanalyzers . | . . . Garrison Access . | . . . Total Hacks . | . . . Successful . | . . . Failed . | . . . Catastrophic . | . . . Database Lockouts . | . . . Manual . | . . . Terminals . | . . . Fabricators . | . . . Repair Stations . | . . . Recycling Units . | . . . Scanalyzers . | . . . Garrison Access . | . . . Terminal Hacks . | . . . Fabricator Hacks . | . . . Repair Station Hacks . | . . . Recycling Unit Hacks . | . . . Scanalyzer . | . . . Garrison Access Hacks . | . . . Unauthorized Hacks . | . . . Terminals . | . . . Fabricators . | . . . Repair Stations . | . . . Recycling Units . | . . . Scanalyzers . | . . . Garrison Access . | . . . Data Cores Recovered . | . . . Used . | . . . Hacking Detections . | . . . Full Trace Events . | . . . Feedback Events . | . . . Feedback Blocked . | . . . Robot Schematics Acquired . | . . . Robots Built . | . . . Authchips . | . . . Time . | . . . Total Robot Build Rating . | . . . Part Schematics Acquired . | . . . Parts Built . | . . . Authchips . | . . . Time . | . . . Total Part Build Rating . | . . . Parts Repaired . | . . . Time . | . . . Parts Recycled . | . . . Recycled Matter . | . . . Retrieved Matter . | . . . Retrieved Components . | . . . Parts Scanalyzed . | . . . Part Schematics Acquired . | . . . Parts Damaged . | . . . Bothacking | -11 -10 -10 ------------ Run | Scr Mat Min Used RIF Installer . | . . . Robots Hacked . | . . . Non-combat . | . . . Combat . | . . . Robot Hacks Applied . | . . . Relay Couplers Released . | . . . Fabnet Peak Effective % . | . . . Robots Rewired . | . . . Allies Hacked . | . . . Hacks Repelled . | . . . Allies | -11 -10 -10 -------- Run | Scr Mat Min Total Allies . | . . . Largest Group . | . . . Highest-Rated Group . | . . . Highest-Rated Ally . | . . . Total Orders . | . . . Ally Attacks . | . . . Total Damage . | . . . Kills . | . . . Allies Corrupted . | . . . Allies Melted . | . . . Intel | -11 -10 -10 ------- Run | Scr Mat Min Robot Analysis Total . | . . . Derelict Logs Recovered 3 | . . 3 Drone Launches . | . . . Drone Recoveries . | . . . Exploration | -11 -10 -10 ------------- Run | Scr Mat Min Turns Passed 864 | 74 102 688 Spaces Moved 530 | 54 67 409 Core 9 | 9 . . Treads . | . . . Legs 521 | 45 67 409 Wheels . | . . . Hover . | . . . Flight . | . . . Fastest Speed 50 | 50 120 120 Average Speed 128 | 113 120 131 Slowest Speed 190 | 120 120 190 Overloaded Moves . | . . . Propulsion Burnouts . | . . . Robots Hopped . | . . . Cave-ins Triggered . | . . . Exploration Rate (%) 34 | 3 19 81 Regions Visited 2 Branch Regions 1 Pre-discovered Areas 2 | . . 2 Known Exits Taken . | . . . Unknown Exits Taken 2 | 1 1 . Scrap Searched . | . . . Spaces Dug . | . . . Terrain Destroyed . | . . . Melee . | . . . Projectile . | . . . AOE . | . . . Terrain Rammed . | . . . Walls Destroyed . | . . . Machines Disabled . | . . . Actions | -11 -10 -10 --------- Run | Scr Mat Min Total 632 | 63 78 491 Wait 29 | . 4 25 Move 528 | 53 66 409 Hop . | . . . Pick Up 6 | 4 . 2 Fast Attach 11 | 6 1 4 Attach 2 | . 1 1 Detach 1 | . . 1 Swap 4 | . . 4 Drop 1 | . . 1 Fire 50 | . 6 44 Melee . | . . . Ram . | . . . Kick . | . . . Crush . | . . . Escape Stasis . | . . . Rewire . | . . . Trap . | . . . Miscellaneous . | . . . Route ------- -11/Scrapyard -10/Materials -10/Mines (discovered 1 exit: [*Mat]) History --------- Turn | Location | Event 6 | -11/Scrapyard | Discovered new exit (range 15) 75 | -11/Scrapyard | Entered Materials 166 | -10/Materials | Discovered new exit (range 10) 177 | -10/Materials | Entered Mines 178 | -10/Mines | Assembled infested the area 183 | -10/Mines | Assisted by a Guerilla fighting off Assembled 325 | -10/Mines | Discovered new exit (range 13) 330 | -10/Mines | Build established: Mutant 424 | -10/Mines | Learned location of Zion (-6) 503 | -10/Mines | Core integrity fell below 50% 518 | -10/Mines | Core integrity fell below 20% 559 | -10/Mines | Lost 3 parts (1p2w) 600 | -10/Mines | A weapon hastily lodged in a ceiling crevice suddenly fell to the ground 615 | -10/Mines | Learned Materials garrison access intel 865 | -10/Mines | Destroyed by S-10 Pest with Light Assault Rifle Last Messages --------------- 00641_ K-01 Serf collects debris. 00656_ System corrupted: Matter fused (-9). 00671_ System corrupted: Component data lost. 00694_ System corrupted: Matter fused (-5). 00710_ Flexi-carbon Leg destroyed. 00711_ S-10 Pest destroyed. 00713_ System corrupted: Component data lost. 00714_ S-10 Pest suffers critical hit (Burn). 00717_ S-10 Pest destroyed. 00717_ Switching to secondary target: S-10 Pest. 00723_ S-10 Pest destroyed. 00728_ Acquired 9 matter. 00734_ System corrupted: Energy discharge (-62). 00759_ System corrupted: Heat flow error (+296). 00783_ System corrupted: Energy discharge (-32). 00784_ K-01 Serf collects debris. 00825_ System corrupted: Component data lost. 00859_ S-10 Pest destroyed. 00862_ S-10 Pest suffers critical hit (Burn). 00864_ System corrupted: Matter fused (-5). Map ----- +----------------------------------------------------+ | | | | | | | | | | | | | | | ?????????????????????????????????????????????????? | | ?????????????????????????????????????????????????? | | ??????????????####???????????????????????????????? | | ?????????????# ##??????????????????????????????? | | ###???####?## ##?????????????????????????????? | | ##?## ## #?????????????????????????????? | | #?# #?????????????????????????????? | | #?# #?????????????????????????????? | | #?# #??????????????????????????????? | | ??# #???????????????????????????????? | | ????# ##???????????????????????????????? | | ????## ###????????????????????????????????? | | ????# ##??????????????????????????????????? | | ????# #???????####????????????????????????? | | ##### ##??????## #????????????????????????? | | ## ###???????# ##???????????????????????? | | ##?????????# ##??????????????????????? | | [ #?????####?# #??????????????????????? | | ==%=##????## ##?# =@#??????????????????????? | | ##%[##??#### ### ss##### % #???????????? | | ###*%#?### * #???????????? | | #?# ### ## #???????????? | | #?# ### ###### ###?????????? | | #?# ## ##?####???"# ###????????? | | #?## ## #### ##???????### = ##????????? | | ??# ## ##??####???????## % % #????????? | | ### ####??????????????# ##???????? | | #????????????????## ##??????? | | ## ###??????????????### ##?????? | | ### #???????????????? # ##????? | | #??# #???????????????? # ] ???### | | ####=#??????????????? #%%# ###?? | | # *######?????????? ## !## # #?? | | # ##### ####?????? # ## #??# | | # #### #?????????# # # #??# | | # ## ##????????????????# # #??# | | ###?????????????????## # # ##??# | | ##????????????????????# #??# | | % ##?????????????????????# # #??# | | ##??????????????????????# ## #### | | ##??????????????????????#### #### ## | | ##????????????????????????# ### | | ##??????????????????????## ### | +----------------------------------------------------+ Best States ------------- Heat Dissipation 25 Energy Generation 14 Energy Capacity 160 Matter Stores 300 Matter Capacity 300 Sight Range 16 Terrain Scan Density 10 Evasion (%) 55 Targeting Accuracy 5 Item Schematics ----------------- None Robot Schematics ------------------ None Fabricated ------------ Nothing Alien Tech Used ----------------- None Achievements -------------- None Challenges ------------ None Game ------ Seed AluminumFocalWings Manual? 0 Play Time 00:06:30 Cumulative 112.6 hours Start 2022.03.18 @ 17:39:19 End 2022.03.18 @ 17:45:07 Sessions 1 Manual Loads 0 Difficulty Rogue Special Mode None Game No. 145 Rogue 145 Adventurer 0 Explorer 0 Win Type - Total 0 Types 0/0/0/0/0/0/0/0/0 Lore% 53 Gallery% 63 Achievement% 50 Wizard Run 0 Options --------- ASCII 0 Keyboard 1 Movement Numpad Keybinds 0 Fullscreen 2 Font 18/SmallcapsGlow Map View 76x50 Tactical HUD 1 Map Filters NONE Filters NONE Steam 1 RUN: ab1b13ed-6f58-4673-8f3e-98cb0a08c194